Cogmind - Beta 16 @@@ ROGUE MODE // 2025.11.07 @ 18:33:44 Player: Bikerider58 Result: Destroyed by B-90 Cyclops with Nova Cannon Performance ------------- Evolutions (8) 4000 Regions Visited (23) 4600 Robots Destroyed (331) 1655 Value Destroyed (13206) 13206 Prototype IDs (42) 840 Alien Tech Used (0) 0 Bonus (8504) 8504 TOTAL SCORE: 32805 Bonus ------- High Alert Combat Kills 740 Follower Combat Kills 1973 Entered DSFs 500 Network Hubs Disabled 600 Acquired ECA 300 Met Warlord at Base 500 MAIN.C Attacked Warlord 500 Warlord Defense Kills 1482 Built Enhanced Grunts 300 A7 Reached Mainframe 300 Met R17 at Cetus 500 Met R17 at Research 2000 Friendly Fire -1191 Cogmind --------- Core Integrity 0/1450 Matter 280/300 Energy 100/100 System Corruption 3% Temperature Cool (9) Movement Core (50) Location -2/Research Parts ------- > --- POWER (4) -------- (None) > --- PROPULSION (6) --- (None) > --- UTILITY (9) ------ (None) > --- WEAPON (4) ------- (None) > --- INVENTORY (5) ---- Biometal Medium Treads Experimental Matter Compressor (265) Vortex Shotgun (50) Vortex Shotgun (50) Peak State ------------ > --- POWER ------------ Quantum Reactor Light Quantum Reactor Vortex Chain Reactor > --- PROPULSION ------- Improved Heavy Treads Centrium Heavy Treads Centrium Heavy Treads > --- UTILITY ---------- Advanced Cooling System High-capacity Storage Unit Spectral Analyzer Advanced Signal Interpreter Advanced Targeting Computer Experimental Phase Shifter Layered Heavy Armor Plating Advanced Force Field > --- WEAPON ----------- Hypervelocity Mass Driver Compact Mass Driver Compact Mass Driver Compact Mass Driver > --- INVENTORY -------- Biometal Medium Treads Energy Well Experimental Matter Compressor Advanced Sensor Array Improved Transmission Jammer Centrium Medium Armor Plating Centrium Medium Armor Plating Graphene Brace Experimental Focal Shield Experimental EM Shield Improved Force Field Advanced Point Defense System Ghost Barrier Advanced Field Recycling Unit Vortex Shotgun Vortex Shotgun HERF Cannon Smartbomb Launcher Advanced Remote Datajack [Rating: 191] Favorites ----------- Power Quantum Reactor Engine Improved Ion Engine Power Core Enhanced Nuclear Core Reactor Quantum Reactor Propulsion Light Treads Treads Light Treads Wheel Wheel Flight Unit Q-thruster Utility High-capacity Storage Unit Device Advanced Cooling System Storage High-capacity Storage Unit Processor Advanced Targeting Computer Hackware Authchip [Propulsion] Protection Centrium Medium Armor Plating Weapon Precision Assault Rifle Energy Gun Cooled Pulse Rifle Energy Cannon Advanced Plasma Cannon Ballistic Gun Precision Assault Rifle Ballistic Cannon Light Antimatter Cannon Launcher Smartbomb Launcher Special Weapon Plasma Cutter Impact Weapon Powered Hammer Piercing Weapon CR-A16's Pointy Stick Build | -11 -10 -9 -9 -8 -7 -7 -7 -7 -6 -6 -6 -6 -6 -6 -5 -5 -4 -4 -4 -4 -3 -3 -2 ------- Run | Yrd Mat Mat Min Mat Fac Low Low Zio Pro Fac Ext Cet Arc Hub Fac DSF Fac Upp Upp War Pro Res Res Slots Evolved 16 | . . 2 . 2 2 . . . . 2 . . . . 2 . 2 . . . . 2 2 Power 3 | . . . . . . . . . . . . . . . 2 . . . . . . 1 . Propulsion 4 | . . . . 2 . . . . . . . . . . . . . . . . . . 2 Utility 7 | . . 1 . . 2 . . . . 1 . . . . . . 2 . . . . 1 . Weapon 2 | . . 1 . . . . . . . 1 . . . . . . . . . . . . . Parts Attached 200 | 6 9 33 . 17 19 5 2 1 7 13 12 11 2 7 2 10 11 2 1 8 1 4 17 Power 21 | 1 1 6 . 1 2 . . . 1 1 2 1 . . 2 . . . . 1 . . 2 Engine 14 | 1 1 6 . 1 1 . . . 1 1 2 . . . . . . . . . . . . Core 1 | . . . . . 1 . . . . . . . . . . . . . . . . . . Reactor 6 | . . . . . . . . . . . . 1 . . 2 . . . . 1 . . 2 Propulsion 36 | 2 3 7 . 6 1 3 . 1 1 3 2 2 . 2 . . . . . . . . 3 Treads 30 | 2 1 5 . 6 1 3 . 1 1 3 2 2 . 2 . . . . . . . . 1 Leg . | . . . . . . . . . . . . . . . . . . . . . . . . Wheel 4 | . 2 2 . . . . . . . . . . . . . . . . . . . . . Hover . | . . . . . . . . . . . . . . . . . . . . . . . . Flight 2 | . . . . . . . . . . . . . . . . . . . . . . . 2 Utility 85 | 2 2 10 . 6 6 1 1 . 4 6 5 5 1 5 . 7 6 2 1 5 1 3 6 Device 43 | 1 1 3 . 2 5 1 1 . 1 2 1 1 1 3 . 7 3 1 1 3 . 1 4 Storage 4 | 1 1 . . . . . . . . . . . . . . . 1 . . 1 . . . Processor 15 | . . 1 . 1 . . . . . 2 2 . . 1 . . 2 1 . 1 1 1 2 Hackware 1 | . . . . . . . . . . 1 . . . . . . . . . . . . . Protection 22 | . . 6 . 3 1 . . . 3 1 2 4 . 1 . . . . . . . 1 . Artifact . | . . . . . . . . . . . . . . . . . . . . . . . . Weapon 58 | 1 3 10 . 4 10 1 1 . 1 3 3 3 1 . . 3 5 . . 2 . 1 6 Energy Gun 7 | 1 2 1 . . 1 . . . . 1 . . . . . . . . . 1 . . . Energy Cannon 5 | . . . . 1 1 . . . . . . . . . . . 2 . . . . . 1 Ballistic Gun 28 | . 1 8 . 2 6 . 1 . 1 1 2 3 1 . . 2 . . . . . . . Ballistic Cannon 8 | . . . . . . . . . . . . . . . . . 3 . . 1 . 1 3 Launcher 4 | . . 1 . . 2 . . . . . . . . . . 1 . . . . . . . Special Weapon 2 | . . . . . . . . . . . 1 . . . . . . . . . . . 1 Impact Weapon 2 | . . . . 1 . 1 . . . . . . . . . . . . . . . . . Slashing Weapon . | . . . . . . . . . . . . . . . . . . . . . . . . Piercing Weapon 2 | . . . . . . . . . . 1 . . . . . . . . . . . . 1 Special Melee Weapon . | . . . . . . . . . . . . . . . . . . . . . . . . Unidentified Prototypes 27 | . . 3 . . 5 . . . . . . 3 . 4 . . 2 . . 7 . 1 2 Corrupted Parts 3 | . . . . . . . . . . . . 1 . 2 . . . . . . . . . System Corruption 9 | . . . . . . . . . . . . 6 . 3 . . . . . . . . . Parts Lost 26 | . . 8 . 3 2 . . . . 2 1 . . 1 . . 1 . . . . . 8 Power 2 | . . 1 . . . . . . . . . . . . . . . . . . . . 1 Propulsion 9 | . . 3 . . . . . . . 1 1 . . . . . . . . . . . 4 Utility 9 | . . 2 . 1 2 . . . . . . . . 1 . . 1 . . . . . 2 Weapon 6 | . . 2 . 2 . . . . . 1 . . . . . . . . . . . . 1 Highest Loss Streak 8 | . . 3 . 2 1 . . . . 1 1 . . 1 . . 1 . . . . . 8 To Critical Strikes . | . . . . . . . . . . . . . . . . . . . . . . . . Average Backups 18 | 2 13 19 20 19 19 20 19 19 19 19 20 18 18 17 17 18 17 18 18 18 18 16 17 Power 1 | . 1 1 1 1 1 1 1 1 1 1 1 1 2 2 . 1 1 1 1 1 1 . . Propulsion 1 | . 2 4 5 3 2 2 2 1 1 . . 1 2 2 2 1 . 1 1 1 1 1 . Utility 8 | . 4 7 7 7 7 8 7 8 9 9 9 8 7 7 8 9 9 10 10 10 12 10 11 Weapon 6 | 2 4 6 7 7 7 8 8 8 7 7 8 6 6 5 5 5 5 5 5 4 4 5 4 Tool/Special . | . . . . . . . . . . . . . . . . . . . . . . . . Unused Backups 56 | . 2 11 . 15 6 . 1 . . 3 1 4 . . . 3 2 . . 1 . . 7 Power 6 | . 1 1 . . 2 . . . . . . 1 . . . . 1 . . . . . . Propulsion 4 | . . 1 . 2 . . . . . . . . . . . . . . . . . . 1 Utility 23 | . . 4 . 6 2 . 1 . . 2 . 3 . . . . 1 . . . . . 4 Weapon 22 | . 1 5 . 7 2 . . . . 1 1 . . . . 3 . . . 1 . . 1 Tool/Special 1 | . . . . . . . . . . . . . . . . . . . . . . . 1 Average Slot Usage (%) 92 | . 100 99 100 99 99 100 99 99 99 97 95 88 86 85 87 87 88 89 89 82 77 72 70 Engine 5 | . 14 10 11 8 6 7 7 7 6 6 6 1 . . . . . . . . . . . Reactor 4 | . . . . . . . . . . . . 4 6 6 16 17 15 15 15 11 10 13 12 Treads 20 | . 18 17 22 35 30 30 30 30 30 26 25 15 13 12 11 11 10 10 10 10 10 9 12 Wheel 1 | . 9 4 . . . . . . . . . . . . . . . . . . . . . Device 10 | . 14 3 . 3 15 15 14 15 8 7 2 2 6 4 5 8 16 15 15 14 15 14 12 Storage 7 | . 14 11 11 9 7 7 7 7 7 6 6 6 6 6 5 5 5 5 5 5 5 4 3 Processor 11 | . . 7 11 9 7 7 7 7 7 12 17 20 20 20 17 13 13 15 15 15 15 14 12 Protection 6 | . . 10 11 5 6 7 7 7 13 8 8 10 6 6 5 5 5 5 5 5 5 4 3 Energy Gun 3 | . 18 2 . . . 7 7 6 7 7 2 . . . . . . . . . . . . Ballistic Gun 17 | . 9 30 33 25 19 14 13 10 14 17 21 25 26 26 23 22 15 10 10 7 5 4 1 Ballistic Cannon 1 | . . . . . . . . . . . . . . . . . 2 10 10 8 5 5 10 Peak Build Rating 191 | 6 9 20 19 31 46 45 44 46 51 71 73 114 106 120 133 137 152 153 156 166 163 172 191 Average Rating 77 | 4 7 15 19 24 39 43 41 43 46 62 68 102 105 109 130 133 146 150 151 157 156 155 176 On Entrance 82 | . 6 9 19 19 30 45 42 42 45 51 71 72 105 105 116 133 136 152 153 151 166 159 151 Avg Prop Armor Cover (%) 10 | . 13 8 . . . . . . . . . . . . . . . . . . . . . Naked Turns 20 | . . . . . . . . . . . . . . . . . . . . . . . 20 Heaviest Build 206 | 10 48 64 63 64 86 72 72 72 86 94 92 103 91 95 135 152 162 144 145 170 153 196 206 Greatest Support 235 | 40 40 40 40 84 84 84 82 84 86 99 105 160 160 160 160 160 160 160 160 160 160 160 235 Greatest Overweight (x) 5 | . 4 5 1 . 1 . . . 1 . 1 . . . . . 1 . . 1 . 1 . Average Overweight (x) . | . 3 2 1 . . . . . . . . . . . . . . . . . . . . Largest Inventory Capacity 20 | 8 20 20 20 20 20 20 20 20 20 20 20 20 20 20 20 20 20 20 20 20 20 20 20 Average Capacity 19 | 7 19 20 20 20 20 20 20 20 20 20 20 20 20 20 20 20 20 20 20 20 20 20 19 Most Carried 20 | 4 20 20 20 20 20 20 20 20 20 20 20 20 20 20 20 20 20 20 20 20 20 20 20 Average Carried 19 | 2 13 19 20 19 19 20 19 19 19 19 20 19 20 19 19 19 19 20 20 19 19 19 18 Final Capacity 20 | 8 20 20 20 20 20 20 20 20 20 20 20 20 20 20 20 20 20 20 20 20 20 20 5 Final Carried 20 | 4 20 20 20 20 20 20 20 20 20 20 20 20 20 20 20 20 20 20 20 20 20 20 4 Class Distribution -------------------- 25% | Scavenger-Tank 17% | Tank 12% | Gunner 11% | Mutant 7% | Scavenger-Gunner 6% | Commander-Tank 5% | Generator-Tank 4% | Commander-Gunner 3% | Generator-Skirmisher Dominant Class ---------------- Mutant | -10/Materials Scavenger-Gunner | -9/Materials Gunner | -9/Mines Scavenger-Gunner | -8/Materials Tank | -7/Factory Gunner | -7/Lower Caves Tank | -7/Lower Caves Mutant | -7/Zion Tank | -6/Proximity Caves Tank | -6/Factory Commander-Gunner | -6/Extension Commander-Tank | -6/Cetus Commander-Tank | -6/Archives Scavenger-Tank | -6/Hub_04(d) Scavenger-Tank | -5/Factory Scavenger-Tank | -5/DSF Scavenger-Tank | -4/Factory Scavenger-Tank | -4/Upper Caves Scavenger-Tank | -4/Upper Caves Scavenger-Tank | -4/Warlord Scavenger-Tank | -3/Proximity Caves Generator-Skirmisher | -3/Research Generator-Tank | -2/Research Resources | -11 -10 -9 -9 -8 -7 -7 -7 -7 -6 -6 -6 -6 -6 -6 -5 -5 -4 -4 -4 -4 -3 -3 -2 ----------- Run | Yrd Mat Mat Min Mat Fac Low Low Zio Pro Fac Ext Cet Arc Hub Fac DSF Fac Upp Upp War Pro Res Res Matter Collected 11406 | 260 146 1002 . 955 1162 178 208 91 305 510 885 375 162 519 . 393 741 50 185 567 298 698 1716 Remotely 26 | . . 26 . . . . . . . . . . . . . . . . . . . . . Salvage Created 13023 | 134 507 1892 . 967 1521 163 61 . 478 686 947 288 310 753 . 526 1323 . 147 368 247 314 1391 Parts 711 | 11 42 116 . 60 74 8 2 . 19 33 52 17 18 41 . 32 69 . . 20 15 9 73 Haulers Intercepted 14 | . . 4 . 1 3 . . . . 1 . . . . . . 3 . . . . 2 . Recyclers Shooed 12 | 1 . . . . 4 . . . . . 3 . . . . . 2 . . . . 2 . Parts Field Recycled 109 | . . . . . 27 . . . . 19 13 9 . . . . 25 . . 16 . . . Retrieved Matter 1708 | . . . . . 339 . . . . 225 189 185 . . . . 470 . . 300 . . . Parts Self-Destructed 34 | . . . . . . 2 1 2 18 . . . . . . . . . . . 11 . . Prevented 2 | . . . . . . . . . . . . . . . . . . . . . 2 . . Parts Restored . | . . . . . . . . . . . . . . . . . . . . . . . . Kills | -11 -10 -9 -9 -8 -7 -7 -7 -7 -6 -6 -6 -6 -6 -6 -5 -5 -4 -4 -4 -4 -3 -3 -2 ------- Run | Yrd Mat Mat Min Mat Fac Low Low Zio Pro Fac Ext Cet Arc Hub Fac DSF Fac Upp Upp War Pro Res Res Combat Hostiles Destroyed 259 | . 13 41 . 21 26 1 1 . 6 14 16 8 2 13 . 11 23 . 1 15 14 4 29 Melee 1 | . . . . . . . . . . . . . . . . . . . . . . . 1 Guns 166 | . 11 38 . 21 20 1 1 . 6 10 16 5 2 13 . 7 13 . . . . 2 . Cannons 25 | . . . . . . . . . . . . . . . . . 8 . 1 1 . 2 13 AOE 65 | . 2 3 . . 6 . . . . 4 . 3 . . . 4 2 . . 14 14 . 13 Classes Destroyed 24 | 2 5 5 . . 3 1 . . . . 1 . . . . 2 . . . 1 2 . 2 Worker 18 | . 4 . . . 7 . . . . 1 . . . 3 . . 1 . . . . . 2 Builder 9 | . 1 2 . 2 2 . . . . . 1 . . . . . . . . . . . 1 Tunneler 4 | 2 . . . . . . . . . 1 . . . . . . . . . . . . 1 Hauler 14 | . . 4 . 1 3 . . . . 1 . . . . . . 3 . . . . 2 . Recycler 5 | 1 . 1 . . 3 . . . . . . . . . . . . . . . . . . Minesweeper 1 | . . . . . . . . . . . . . . . . . . . . . 1 . . Mechanic 2 | . . 1 . . 1 . . . . . . . . . . . . . . . . . . Operator 9 | . . 1 . 2 1 . . . . . 1 . 3 . . . . . . . . . 1 Drone 1 | . . . . . . . . . . . . . . . . . . . . . 1 . . Watcher 7 | . 1 4 . . . . . . . 2 . . . . . . . . . . . . . Swarmer 88 | . 6 11 . 7 8 . . . . 8 3 5 . 4 . 5 7 . . 3 9 . 12 Saboteur 4 | . . . . . . . . . . . . . . . . . . . . 4 . . . Grunt 88 | . 7 20 . 12 11 . . . 3 1 5 . . 6 . 2 4 . . 4 2 4 7 Brawler 4 | . . . . . 1 . . . . . . . . . . . 3 . . . . . . Duelist 3 | . . 1 . . . . . . 1 . . . . . . . . . . 1 . . . Sentry 26 | . . 9 . 2 2 1 1 . 1 1 6 . 2 . . . 1 . . . . . . Demolisher 1 | . . . . . . . . . . . . . . . . . . . . . . . 1 Specialist 3 | . . . . . . . . . . . . . . . . 3 . . . . . . . Hunter 15 | . . . . . 1 . . . 1 3 . . . 1 . . . . . 3 2 . 4 Programmer 17 | . . . . . 3 . . . . 1 . . . 1 . . 8 . 1 . . . 3 Heavy 1 | . . . . . . . . . . . . . . . . 1 . . . . . . . Behemoth 2 | . . . . . . . . . . . 2 . . . . . . . . . . . . Cetus Guard 3 | . . . . . . . . . . . . 3 . . . . . . . . . . . Lightning 1 | . . . . . . . . . . . . . . 1 . . . . . . . . . Striker 2 | . . . . . . . . . . . . . . . . . . . . . . . 2 Packrat 1 | . . . . . . . . . . . . . . . . . . . 1 . . . . Samaritan 4 | . . . . . . 2 . . . . . . . . . . . . 1 . . . 1 Thug 1 | . . . . . . . . . . . . . 1 . . . . . . . . . . Savage 1 | . . . . . . . . . . . . . . 1 . . . . . . . . . Guerrilla 1 | . . . . . . . . . . . . . . . . . . . . . . . 1 Best Kill Streak 9 | 3 3 6 . 6 6 1 1 . 4 5 4 3 3 6 . 5 5 . 1 8 7 2 9 Combat Bots Only 8 | . 3 5 . 5 4 1 1 . 4 4 3 3 2 6 . 5 4 . 1 8 7 2 6 Max Kills in Single Turn 5 | 1 2 2 . 3 2 1 1 . 1 3 1 3 1 2 . 4 3 . 1 4 3 1 5 Gunslinging 1 | . . 1 . 1 . . . . . . . 1 . 1 . . 1 . . . . . . Exploded 4 | . 1 2 . . 2 . . . . 2 . 3 . . . 4 2 . . 4 3 . 4 Melee 1 | . . . . . . . . . . . . . . . . . . . . . . . 1 Uniques/NPCs Destroyed . | . . . . . . . . . . . . . . . . . . . . . . . . Combat | -11 -10 -9 -9 -8 -7 -7 -7 -7 -6 -6 -6 -6 -6 -6 -5 -5 -4 -4 -4 -4 -3 -3 -2 -------- Run | Yrd Mat Mat Min Mat Fac Low Low Zio Pro Fac Ext Cet Arc Hub Fac DSF Fac Upp Upp War Pro Res Res Hostile Shots Fired 1621 | . 59 163 . 103 154 57 28 . 64 108 143 15 3 66 . 61 67 . 7 22 9 24 468 Missed 455 | . 14 41 . 21 43 23 8 . 18 30 50 5 . 18 . 14 21 . 2 8 5 8 126 Intercepted 1 | . . . . . . . . . . . . . . . . . . . . . . . 1 Hits 1166 | . 45 122 . 82 111 34 20 . 46 78 93 10 3 48 . 47 46 . 5 14 4 16 342 Melee 17 | . . 3 . . 2 . 1 . 4 . . . . . . . 3 . . . . . 4 Projectile 1149 | . 45 119 . 82 109 34 19 . 42 78 93 10 3 48 . 47 43 . 5 14 4 16 338 AOE 3 | . . . . . . . . . . . . . . . . . 1 . . . . . 2 Critical Strikes 33 | . . 3 . 2 1 . . . 5 1 1 . . 2 . 1 2 . . . . . 15 Actively Blocked 1 | . . . . . . . . . . . . . . . . . . . . . . . 1 Part Disruptions 3 | . . . . . . . . . . . . . 1 . . 2 . . . . . . . Damage Taken 14837 | . 455 1511 . 1242 1077 226 104 . 683 969 906 290 83 694 . 574 555 . 26 157 49 218 5018 Core 2317 | . 43 165 . 95 77 16 16 . 104 77 65 12 13 38 . 30 40 . 2 20 . 36 1468 Absorbed by Shields 4233 | . . . . . 320 . 46 . 35 . 85 76 88 160 . 516 447 . 28 147 45 221 2019 Reduced by Siege Mode 148 | . . . . . . . . . . . . . . 18 . 63 . . . . . . 67 Ignored by Resistances 2478 | . . . . . . . . . 74 167 112 . . 45 . . 173 . 45 . . . 1862 Regen/Repaired (Parts) 613 | . . 268 . . . . . 117 . . . . . . . . . . . 24 . . 204 Core Remaining (%) 83 | 100 82 . 58 82 . . . . 69 . . . . 75 . 97 . . . . 94 97 . Volleys Fired 710 | 9 48 127 . 70 77 11 5 . 21 40 50 11 8 24 . 18 73 . 3 13 18 28 56 Largest 4 | 1 2 3 . 3 3 3 3 . 3 4 4 4 4 4 . 4 4 . 4 2 2 3 4 Hottest 218 | 40 80 80 . 75 76 68 70 . 70 104 114 114 117 131 . 131 196 . 172 86 86 162 218 Shots Fired 1921 | 9 95 373 . 183 213 33 16 . 55 136 176 44 33 90 . 63 189 . 13 17 21 61 101 Gun 1669 | 9 95 370 . 180 208 33 16 . 55 132 174 43 33 90 . 62 122 . 6 4 3 23 11 Cannon 207 | . . . . 3 . . . . . . . . . . . . 66 . 7 4 3 38 86 Launcher 45 | . . 3 . . 5 . . . . 4 2 1 . . . 1 1 . . 9 15 . 4 Special . | . . . . . . . . . . . . . . . . . . . . . . . . Kinetic 1571 | . 33 317 . 180 189 22 11 . 34 91 147 43 33 90 . 62 147 . 13 8 6 61 84 Thermal 262 | 9 32 53 . 3 19 11 5 . 21 41 27 . . . . . 41 . . . . . . Explosive 45 | . . 3 . . 5 . . . . 4 2 1 . . . 1 1 . . 9 15 . 4 Electromagnetic 43 | . 30 . . . . . . . . . . . . . . . . . . . . . 13 Robot Hit Streak 64 | 5 16 26 . 47 21 11 6 . 8 15 49 14 12 17 . 59 64 . 5 4 3 12 9 Robot Miss Streak 6 | 2 3 6 . 2 3 1 2 . 3 3 2 2 1 3 . . 3 . 1 1 1 3 4 Penetration Max 1 | . . . . . . . . . . . . . 1 1 . . 1 . . . . 1 1 Secondary Targets 25 | . . 5 . 3 1 . . . 2 1 2 4 . 6 . . 1 . . . . . . Max Gunslinging Chain 1 | . . 1 . 1 1 . . . 1 1 1 1 . 1 . . 1 . . . . . . Shots Hit Robots 1343 | 6 68 246 . 157 160 25 9 . 40 92 144 36 23 61 . 53 99 . 8 7 3 42 64 Core Hits 650 | 4 31 96 . 52 70 8 3 . 22 37 55 20 11 30 . 19 47 . 2 51 25 13 54 Critical Kills 22 | . . 2 . . . . . . . . . 4 2 4 . 2 6 . . . . 1 1 Critical Parts Destroyed 28 | . . 3 . . 3 . . . . . 1 . . 4 . 1 6 . . . 1 3 6 Critical Strikes 70 | . . 5 . . 3 . . . 1 1 4 5 2 8 . 4 17 . 1 1 1 4 13 Burn 5 | . . . . . . . . . 1 1 3 . . . . . . . . . . . . Destroy 54 | . . 5 . . 2 . . . . . 1 5 2 8 . 4 14 . . . 1 4 8 Blast 10 | . . . . . . . . . . . . . . . . . 3 . 1 1 . . 5 Smash 1 | . . . . . 1 . . . . . . . . . . . . . . . . . . Melee Attacks 22 | . . . . 3 9 2 1 1 . 3 . . . . . . 1 . . . . . 2 Impact 16 | . . . . 3 9 2 1 1 . . . . . . . . . . . . . . . Slashing . | . . . . . . . . . . . . . . . . . . . . . . . . Piercing 6 | . . . . . . . . . . 3 . . . . . . 1 . . . . . 2 Sneak Attacks 3 | . . . . . 3 . . . . . . . . . . . . . . . . . . Combat Hostiles . | . . . . . . . . . . . . . . . . . . . . . . . . Follow-up Attacks . | . . . . . . . . . . . . . . . . . . . . . . . . Damage Inflicted 37659 | 68 819 2929 . 2358 3672 438 162 . 729 2100 2846 1044 496 1765 . 1609 3350 . 330 3163 2320 1916 5545 Guns 21762 | 68 691 2688 . 2342 2634 438 162 . 729 1697 2837 801 496 1765 . 1238 2011 . 130 21 26 623 365 Cannons 5711 | . . . . . . . . . . . . . . . . . 1038 . 171 139 68 1274 3021 Explosions 9434 | . 128 204 . . 579 . . . . 402 . 243 . . . 371 241 . . 3003 2222 . 2041 Melee 359 | . . . . . 359 . . . . . . . . . . . . . . . . . . Ramming 393 | . . 37 . 16 100 . . . . 1 9 . . . . . 60 . 29 . 4 19 118 Kinetic 24101 | . 187 2323 . 2342 2416 287 66 . 371 1132 2420 801 496 1765 . 1238 2735 . 301 160 94 1897 3070 Thermal 2972 | 68 420 365 . . 218 151 96 . 358 565 417 . . . . . 314 . . . . . . Explosive 9178 | . . 204 . . 579 . . . . 402 . 243 . . . 371 241 . . 3003 2222 . 1913 Electromagnetic 656 | . 212 . . . . . . . . . . . . . . . . . . . . . 444 Impact 359 | . . . . . 359 . . . . . . . . . . . . . . . . . . Slashing . | . . . . . . . . . . . . . . . . . . . . . . . . Piercing . | . . . . . . . . . . . . . . . . . . . . . . . . Highest Corruption 9 | . . 2 2 1 5 5 5 5 . 3 3 9 9 7 . 3 6 6 7 7 . . 3 Average Corruption 3 | . . 1 2 1 3 5 5 5 . 2 3 6 4 3 . 2 2 6 6 7 . . 2 Corruption Purged 7 | . . . . . . . . . . . . . 7 . . . . . . . . . . Corruption Blocked . | . . . . . . . . . . . . . . . . . . . . . . . . Effects 264 | . . 33 7 2 34 9 32 2 . 8 29 26 9 7 . 4 17 14 20 1 . . 10 Message Errors 59 | . . 6 1 . 8 1 11 . . 1 5 4 2 3 . . 6 4 4 1 . . 2 Matter Fused 50 | . . 4 2 . 9 2 8 1 . 2 3 3 . 1 . 1 3 4 4 . . . 3 Heat Flow Errors 39 | . . 4 4 1 5 2 1 1 . 1 6 5 1 . . 1 1 2 2 . . . 2 Energy Discharges 34 | . . 6 . 1 2 1 5 . . 1 3 6 1 2 . 1 . 1 3 . . . 1 Parts Rejected 4 | . . 2 . . . . . . . 1 1 . . . . . . . . . . . . Parts Fused 3 | . . . . . . . . . . . . . 1 . . . . 1 1 . . . . Data Loss (minor) 34 | . . 3 . . 7 3 3 . . 1 3 4 1 . . . 4 1 4 . . . . Data Loss (major) 15 | . . 4 . . . . 1 . . . 4 . 1 1 . 1 . 1 1 . . . 1 Misfires 15 | . . 1 . . 1 . 2 . . . 4 3 2 . . . . . 1 . . . 1 Alerts 7 | . . 3 . . 1 . . . . . . 1 . . . . 2 . . . . . . Weapon Failures 4 | . . . . . 1 . 1 . . 1 . . . . . . 1 . . . . . . Overload Shots . | . . . . . . . . . . . . . . . . . . . . . . . . Overflow Damage 913 | . . . . . 322 . . . . . . 13 . . . . 72 . 29 20 251 47 159 Projectiles 248 | . . . . . 25 . . . . . . . . . . . 43 . 15 . 5 47 113 Explosions 351 | . . . . . 8 . . . . . . 13 . . . . 29 . . 20 246 . 35 Melee 314 | . . . . . 289 . . . . . . . . . . . . . 14 . . . 11 Knockbacks 45 | . . . . . 3 . . . . . . . . . . . 2 . 2 . 2 9 27 Impact 3 | . . . . . 2 . . . . . . . . . . . 1 . . . . . . Kinetic 36 | . . . . . . . . . . . . . . . . . 1 . 2 . 2 6 25 Secondary 6 | . . . . . 1 . . . . . . . . . . . . . . . . 3 2 Self-Inflicted Damage 427 | . 35 3 . . . . . . . . . . . . . . 254 . . 10 . . 125 Shots 8 | . 1 . . . . . . . . . . . . . . . 3 . . 1 . . 3 Rammed 26 | . . 4 . 2 6 . . . . 1 2 . . . . . 4 . 2 . . 3 2 Targets Rammed 34 | . . 6 . 2 9 . . . . 1 2 . . . . . 4 . 2 . 1 3 4 Kicked . | . . . . . . . . . . . . . . . . . . . . . . . . Crushed 8 | . . 2 . . 3 . . . . . . . . . . . . . . . 1 . 2 Highest Temperature 342 | . 162 205 259 294 261 211 149 127 82 188 342 280 114 285 . 223 261 87 183 . . 295 312 Average Temperature 73 | . 50 41 115 85 50 101 46 70 36 49 83 94 37 102 . 98 45 46 64 . . 123 135 Received Heat Transfer 2761 | . 138 567 . 603 265 54 32 . 273 39 298 9 4 111 . 30 9 . . 16 4 46 263 Effects 9 | . . . . 3 . . . . . . . . . . . . 3 . . . . . 3 Energy Bleed 1 | . . . . . . . . . . . . . . . . . 1 . . . . . . Interference 8 | . . . . 3 . . . . . . . . . . . . 2 . . . . . 3 Siege Activations 9 | . . . . . . . . . . . . 1 . 2 . 2 2 . . . . . 2 Total Turns 141 | . . . . . . . . . . . . 8 . 22 . 40 20 . . . . . 51 Longest Duration 48 | . . . . . . . . . . . . 8 . 20 . 38 16 . . . . . 48 Martial Activations . | . . . . . . . . . . . . . . . . . . . . . . . . Shielding Activations . | . . . . . . . . . . . . . . . . . . . . . . . . Robots Disrupted . | . . . . . . . . . . . . . . . . . . . . . . . . Combat Hostiles . | . . . . . . . . . . . . . . . . . . . . . . . . Robots Corrupted 8 | . . . . . 3 . . . . . . . . . . . . . 2 . . . 3 Combat Hostiles 2 | . . . . . . . . . . . . . . . . . . . . . . . 2 Parts Fried 16 | . 1 . . . 4 . . . . . . . . . . . . . 1 . . . 10 Impact Corruptions 14 | . . . . . 9 . . . . . . . . . . . . . 3 . . . 2 Robots Melted . | . . . . . . . . . . . . . . . . . . . . . . . . Combat Hostiles . | . . . . . . . . . . . . . . . . . . . . . . . . Parts Melted 13 | . 1 1 . . 3 . . . . 3 2 . . . . . 2 . . . . . 1 Heat Transferred 6148 | 150 925 825 . . 407 296 185 . 777 1147 1036 . . . . . 400 . . . . . . Parts Sabotaged . | . . . . . . . . . . . . . . . . . . . . . . . . Parts Stolen 1 | . . . . . . . 1 . . . . . . . . . . . . . . . . Parts Stripped . | . . . . . . . . . . . . . . . . . . . . . . . . Power Chain Reactions 4 | . 2 . . . . . . . . . . . . . . . . . . . . . 2 Alert | -11 -10 -9 -9 -8 -7 -7 -7 -7 -6 -6 -6 -6 -6 -6 -5 -5 -4 -4 -4 -4 -3 -3 -2 ------- Run | Yrd Mat Mat Min Mat Fac Low Low Zio Pro Fac Ext Cet Arc Hub Fac DSF Fac Upp Upp War Pro Res Res Maximum Alert Level 4 | . . 2 1 1 2 . . . . 1 2 2 1 4 2 2 3 . . . . 1 2 Low Security (%) 59 | 100 100 70 88 81 46 . . . . 85 74 29 32 36 . . . . . . . 88 37 Level 1 29 | . . 10 11 18 47 . . . . 14 18 66 67 17 . 26 72 . . . . 11 45 Level 2 9 | . . 19 . . 5 . . . . . 7 4 . 8 100 73 11 . . . . . 16 Level 3 2 | . . . . . . . . . . . . . . 37 . . 15 . . . . . . Level 4 . | . . . . . . . . . . . . . . . . . . . . . . . . Level 5 . | . . . . . . . . . . . . . . . . . . . . . . . . High Security . | . . . . . . . . . . . . . . . . . . . . . . . . Max Security . | . . . . . . . . . . . . . . . . . . . . . . . . Sterilizations 1 | . . . . . . . . . . . . . . . . 1 . . . . . . . Peak Influence 1102 | 10 136 585 221 277 444 . . . . 249 412 416 307 1102 529 633 762 . . . . 240 616 Initial 529 | . . 32 221 . 126 . . . . 2 30 200 161 51 529 345 331 . . . . 177 3 Average 200 | 1 76 200 94 118 188 . . . . 55 164 234 233 473 510 506 405 . . . . 124 258 Influence Increases 11048 | 15 537 1279 . 688 885 20 20 . 150 510 940 704 206 1369 5 288 994 . 35 510 428 388 1077 Destroy 0b10 Robot/C 5940 | . 260 820 . 420 520 20 20 . 120 280 420 300 80 560 . 220 460 . 20 380 280 180 580 Destroy 0b10 Robot/NC 390 | 15 30 65 . 25 85 . . . 10 25 15 10 15 25 . . 20 . . . 10 10 30 Destroy Leader 1086 | . 72 236 . 82 116 . . . 20 86 52 20 . 114 . 30 86 . . . 40 42 90 Allied During Kill 1491 | . . . . . . . . . . . 249 330 95 513 . . . . . 130 98 69 7 Successful Hack 364 | . 33 37 . 44 56 . . . . 26 79 . . . 5 . 31 . . . . 46 7 Select Force Hacks 220 | . 60 30 . 30 . . . . . . . . . 100 . . . . . . . . . Disable Machine 495 | . 15 15 . . 30 . . . . 60 60 15 15 15 . . 210 . . . . 15 45 Anti-Garrison Action 150 | . . . . . . . . . . . . . . . . . . . . . . . 150 Destroy Structure 522 | . 7 31 . 12 33 . . . . 18 20 14 1 27 . 38 172 . . . . 26 123 Lose Combat Pursuer 390 | . 60 45 . 75 45 . . . . 15 45 15 . 15 . . 15 . 15 . . . 45 Influence Decreases 10510 | 15 460 787 569 411 721 354 127 . 146 450 646 658 461 438 591 149 868 536 258 112 562 645 546 Entered New Map 3080 | . . 45 348 . 151 164 21 . . 2 34 158 243 98 551 149 302 282 43 . 398 87 4 Time Decay 6430 | 15 460 662 221 381 550 190 106 . 146 288 542 380 198 170 40 . 546 254 215 92 164 368 442 Lost Part 250 | . . 80 . 30 20 . . . . 10 10 . . 10 . . 10 . . . . . 80 Lost Ally 450 | . . . . . . . . . . . 60 120 20 160 . . 10 . . 20 . 40 20 Purge Threat 300 | . . . . . . . . . . 150 . . . . . . . . . . . 150 . Squads Dispatched 63 | . 7 8 . 4 8 . . . . 8 3 . . 8 1 2 5 . . . . 8 1 Investigation 20 | . 5 3 . 1 1 . . . . . 2 . . 4 1 . . . . . . 2 1 Extermination 9 | . . . . . 4 . . . . 1 . . . 1 . . 3 . . . . . . Reinforcement 25 | . 2 4 . 3 3 . . . . 1 1 . . 1 . 2 2 . . . . 6 . Assault 3 | . . 1 . . . . . . . . . . . 2 . . . . . . . . . Garrison 6 | . . . . . . . . . . 6 . . . . . . . . . . . . . Intercept . | . . . . . . . . . . . . . . . . . . . . . . . . Searches Triggered . | . . . . . . . . . . . . . . . . . . . . . . . . Construction Impeded 1 | . . . . . . . . . . . . . . . . . . . . . . 1 . Haulers Reinforced 2 | . . . . . 2 . . . . . . . . . . . . . . . . . . Active Scanning Responses . | . . . . . . . . . . . . . . . . . . . . . . . . Cargo Convoy Interrupts . | . . . . . . . . . . . . . . . . . . . . . . . . Stealth | -11 -10 -9 -9 -8 -7 -7 -7 -7 -6 -6 -6 -6 -6 -6 -5 -5 -4 -4 -4 -4 -3 -3 -2 --------- Run | Yrd Mat Mat Min Mat Fac Low Low Zio Pro Fac Ext Cet Arc Hub Fac DSF Fac Upp Upp War Pro Res Res Distress Signals 28 | . 2 3 . 6 3 . . . . . . 2 . 2 . . 1 . . . . 4 5 Communications Jammed . | . . . . . . . . . . . . . . . . . . . . . . . . Distress Signals . | . . . . . . . . . . . . . . . . . . . . . . . . Times Spotted 430 | . 19 64 . 37 37 1 2 . 6 20 25 15 7 34 . 10 32 . 2 36 11 14 58 Peak Tracking Total 16 | . 4 6 . 9 6 1 1 . 4 4 5 5 2 12 . 5 5 . 2 12 4 4 16 Tactical Retreats 18 | . 2 2 . 2 3 . . . . 1 2 1 . 1 . . 1 . 1 . . . 2 Traps | -11 -10 -9 -9 -8 -7 -7 -7 -7 -6 -6 -6 -6 -6 -6 -5 -5 -4 -4 -4 -4 -3 -3 -2 ------- Run | Yrd Mat Mat Min Mat Fac Low Low Zio Pro Fac Ext Cet Arc Hub Fac DSF Fac Upp Upp War Pro Res Res Traps Triggered 10 | . 2 4 . 1 3 . . . . . . . . . . . . . . . . . . Indirectly . | . . . . . . . . . . . . . . . . . . . . . . . . Trap Hack Attempts . | . . . . . . . . . . . . . . . . . . . . . . . . Triggered . | . . . . . . . . . . . . . . . . . . . . . . . . Disarmed . | . . . . . . . . . . . . . . . . . . . . . . . . Reprogrammed . | . . . . . . . . . . . . . . . . . . . . . . . . Reused . | . . . . . . . . . . . . . . . . . . . . . . . . Traps Extracted . | . . . . . . . . . . . . . . . . . . . . . . . . Installed . | . . . . . . . . . . . . . . . . . . . . . . . . Triggered . | . . . . . . . . . . . . . . . . . . . . . . . . Machines | -11 -10 -9 -9 -8 -7 -7 -7 -7 -6 -6 -6 -6 -6 -6 -5 -5 -4 -4 -4 -4 -3 -3 -2 ---------- Run | Yrd Mat Mat Min Mat Fac Low Low Zio Pro Fac Ext Cet Arc Hub Fac DSF Fac Upp Upp War Pro Res Res Machines Disabled 37 | . 1 1 . . 2 . . . . 4 5 1 1 1 . . 14 . . 1 1 1 4 Max in Single Turn 4 | . 1 1 . . 1 . . . . 2 1 1 1 . . . 4 . . 1 1 1 1 Garrison Access 4 | . . . . . 1 . . . . . . . . 1 . . . . . . . 1 1 Network Hub 3 | . . . . . . . . . . . . . . 3 . . . . . . . . . Machines Repaired . | . . . . . . . . . . . . . . . . . . . . . . . . Machines Dismantled 5 | . . . . . . . . . . . 3 1 . . . . . . . 1 . . . Machines Sabotaged 2 | . . . . . . . . . . . . . . 2 . . . . . . . . . Overloaded Fab Kills . | . . . . . . . . . . . . . . . . . . . . . . . . Hacking | -11 -10 -9 -9 -8 -7 -7 -7 -7 -6 -6 -6 -6 -6 -6 -5 -5 -4 -4 -4 -4 -3 -3 -2 --------- Run | Yrd Mat Mat Min Mat Fac Low Low Zio Pro Fac Ext Cet Arc Hub Fac DSF Fac Upp Upp War Pro Res Res Machines Accessed 97 | . 8 14 . 8 15 . 2 1 . 5 19 . . 4 2 . 5 1 . 1 . 8 4 Terminals 64 | . 6 8 . 7 10 . . . . 3 16 . . 4 1 . 2 1 . . . 5 1 Fabricators 7 | . . . . . 3 . . . . 2 . . . . . . 1 . . . . 1 . Repair Stations 6 | . . 2 . . . . . . . . 1 . . . 1 . 1 . . . . 1 . Recycling Units 8 | . 2 2 . 1 . . . . . . 2 . . . . . . . . . . . 1 Scanalyzers 5 | . . 2 . . 1 . . . . . . . . . . . 1 . . . . 1 . Garrison Access 3 | . . . . . 1 . . . . . . . . . . . . . . . . . 2 Total Hacks 318 | . 30 39 . 19 35 . 6 5 . 17 49 . . 6 10 . 29 1 . 1 . 49 22 Successful 129 | . 12 26 . 11 12 . 6 5 . 10 17 . . 4 3 . 5 1 . 1 . 15 1 Failed 189 | . 18 13 . 8 23 . . . . 7 32 . . 2 7 . 24 . . . . 34 21 Catastrophic 42 | . 2 2 . 2 3 . . . . 1 6 . . . 1 . 9 . . . . 8 8 Database Lockouts . | . . . . . . . . . . . . . . . . . . . . . . . . Manual 123 | . 22 18 . 15 20 . . . . 9 15 1 . 6 . . 6 . . . . 10 1 Terminals 198 | . 26 24 . 18 25 . . . . 10 43 . . 6 3 . 6 1 . . . 26 10 Fabricators 28 | . . . . . 7 . . . . 7 . . . . . . 6 . . . . 8 . Repair Stations 22 | . . 5 . . . . . . . . 2 . . . 7 . 7 . . . . 1 . Recycling Units 16 | . 4 3 . 1 . . . . . . 4 . . . . . . . . . . . 4 Scanalyzers 33 | . . 7 . . 2 . . . . . . . . . . . 10 . . . . 14 . Garrison Access 9 | . . . . . 1 . . . . . . . . . . . . . . . . . 8 Terminal Hacks 53 | . 5 7 . 4 3 . 6 5 . 5 12 . . . 1 . . 1 . 1 . 2 1 Record 8 | . . . . . . . 5 . . . 2 . . . . . . 1 . . . . . Part Schematic 6 | . . . . . . . . 5 . 1 . . . . . . . . . . . . . Robot Analysis 6 | . 2 2 . 1 1 . . . . . . . . . . . . . . . . . . Prototype ID Bank 8 | . 1 1 . 1 1 . . . . 2 2 . . . . . . . . . . . . Open Door 6 | . . . . . . . 1 . . . 4 . . . . . . . . 1 . . . Open DSF 1 | . . . . . . . . . . . . . . . 1 . . . . . . . . Branch Access Points 1 | . . . . . . . . . . . . . . . . . . . . . . . 1 Terminal Index 3 | . 1 1 . . . . . . . 1 . . . . . . . . . . . . . Alert Level 3 | . . 1 . . . . . . . . 2 . . . . . . . . . . . . Unreport Threat 2 | . . . . . . . . . . 1 . . . . . . . . . . . 1 . Locate Traps 2 | . . 1 . 1 . . . . . . . . . . . . . . . . . . . Maintenance Status 1 | . . . . . . . . . . . . . . . . . . . . . . 1 . Recall Investigation 1 | . . . . . . . . . . . 1 . . . . . . . . . . . . Recall Reinforcements 1 | . . . . . . . . . . . 1 . . . . . . . . . . . . Hauler Manifests 1 | . . . . 1 . . . . . . . . . . . . . . . . . . . Zone Layout 3 | . 1 1 . . 1 . . . . . . . . . . . . . . . . . . Fabricator Hacks 5 | . . . . . 1 . . . . 3 . . . . . . . . . . . 1 . Network Status 3 | . . . . . 1 . . . . 1 . . . . . . . . . . . 1 . Load Schematic 1 | . . . . . . . . . . 1 . . . . . . . . . . . . . Build 1 | . . . . . . . . . . 1 . . . . . . . . . . . . . Repair Station Hacks 11 | . . 5 . . . . . . . . 1 . . . 2 . 2 . . . . 1 . Scan Component 8 | . . 3 . . . . . . . . 1 . . . 2 . 1 . . . . 1 . Repair 3 | . . 2 . . . . . . . . . . . . . . 1 . . . . . . Recycling Unit Hacks 2 | . . 1 . . . . . . . . 1 . . . . . . . . . . . . Retrieve Components 2 | . . 1 . . . . . . . . 1 . . . . . . . . . . . . Scanalyzer 17 | . . 6 . . . . . . . . . . . . . . 3 . . . . 8 . Insert Component 4 | . . . . . . . . . . . . . . . . . 2 . . . . 2 . Analyze 5 | . . . . . . . . . . . . . . . . . . . . . . 5 . Retrieve Study 8 | . . 6 . . . . . . . . . . . . . . 1 . . . . 1 . Garrison Access Hacks 1 | . . . . . 1 . . . . . . . . . . . . . . . . . . Seal Access 1 | . . . . . 1 . . . . . . . . . . . . . . . . . . Unauthorized Hacks 40 | . 7 7 . 7 7 . . . . 2 3 . . 4 . . . . . . . 3 . Terminals 32 | . 5 6 . 6 7 . . . . . 3 . . 4 . . . . . . . 1 . Botnet 4 | . . 1 . . 1 . . . . . 1 . . . . . . . . . . 1 . Operators 2 | . . . . 1 . . . . . . 1 . . . . . . . . . . . . Skim 22 | . 5 5 . 5 6 . . . . . 1 . . . . . . . . . . . . Sabotage 4 | . . . . . . . . . . . . . . 4 . . . . . . . . . Fabricators 4 | . . . . . . . . . . 2 . . . . . . . . . . . 2 . Liberate 2 | . . . . . . . . . . 1 . . . . . . . . . . . 1 . Haulers 2 | . . . . . . . . . . 1 . . . . . . . . . . . 1 . Repair Stations . | . . . . . . . . . . . . . . . . . . . . . . . . Recycling Units 4 | . 2 1 . 1 . . . . . . . . . . . . . . . . . . . Tunnel 4 | . 2 1 . 1 . . . . . . . . . . . . . . . . . . . Scanalyzers . | . . . . . . . . . . . . . . . . . . . . . . . . Garrison Access . | . . . . . . . . . . . . . . . . . . . . . . . . Data Cores Recovered 1 | . . . . . 1 . . . . . . . . . . . . . . . . . . Used 1 | . . . . . 1 . . . . . . . . . . . . . . . . . . Hacking Detections 80 | . 7 13 . 7 14 . . . . 5 16 . . . 2 . 4 . . . . 8 4 Full Trace Events 7 | . . 1 . . 1 . . . . . 2 . . . 1 . . . . . . 1 1 Feedback Events 1 | . . . . . . . . . . . . . . . . . . . . . . . 1 Corruption 1 | . . . . . . . . . . . . . . . . . . . . . . . 1 Feedback Blocked . | . . . . . . . . . . . . . . . . . . . . . . . . Robot Schematics Acquired 3 | . . . . . . . . 3 . . . . . . . . . . . . . . . Robots Built . | . . . . . . . . . . . . . . . . . . . . . . . . Authchips . | . . . . . . . . . . . . . . . . . . . . . . . . Time . | . . . . . . . . . . . . . . . . . . . . . . . . Total Robot Build Rating . | . . . . . . . . . . . . . . . . . . . . . . . . Part Schematics Acquired 20 | . . . . . . . . 18 . 1 . . . . . . . . . . . 1 . Parts Built 2 | . . . . . . . . . . 2 . . . . . . . . . . . . . Authchips 1 | . . . . . . . . . . 1 . . . . . . . . . . . . . Time 106 | . . . . . . . . . . 106 . . . . . . . . . . . . . Total Part Build Rating 12 | . . . . . . . . . . 12 . . . . . . . . . . . . . Part Studies Acquired 8 | . . 6 . . . . . . . . . . . . . . 1 . . . . 1 . Parts Repaired 2 | . . 2 . . . . . . . . . . . . . . . . . . . . . Time 188 | . . 52 . . . . . . . . . . . . . . 136 . . . . . . Parts Recycled . | . . . . . . . . . . . . . . . . . . . . . . . . Recycled Matter . | . . . . . . . . . . . . . . . . . . . . . . . . Retrieved Matter . | . . . . . . . . . . . . . . . . . . . . . . . . Retrieved Components 11 | . . 9 . . . . . . . . 2 . . . . . . . . . . . . Parts Scanalyzed 2 | . . . . . . . . . . . . . . . . . 1 . . . . 1 . Part Schematics Acquired 1 | . . . . . . . . . . . . . . . . . . . . . . 1 . Parts Damaged 1 | . . . . . . . . . . . . . . . . . 1 . . . . . . Bothacking | -11 -10 -9 -9 -8 -7 -7 -7 -7 -6 -6 -6 -6 -6 -6 -5 -5 -4 -4 -4 -4 -3 -3 -2 ------------ Run | Yrd Mat Mat Min Mat Fac Low Low Zio Pro Fac Ext Cet Arc Hub Fac DSF Fac Upp Upp War Pro Res Res Used RIF Installer . | . . . . . . . . . . . . . . . . . . . . . . . . Robots Hacked . | . . . . . . . . . . . . . . . . . . . . . . . . Non-combat . | . . . . . . . . . . . . . . . . . . . . . . . . Combat . | . . . . . . . . . . . . . . . . . . . . . . . . Robot Hacks Applied . | . . . . . . . . . . . . . . . . . . . . . . . . Relay Couplers Released 6 | . . . . . . . . . . . . . . 2 . . . . . . . 2 2 Machine Destruction 6 | . . . . . . . . . . . . . . 2 . . . . . . . 2 2 Fabnet Peak Effective % . | . . . . . . . . . . . . . . . . . . . . . . . . Robots Rewired 15 | . . . . . . . . . . . 10 . . . . . . . . 5 . . . Allies Hacked . | . . . . . . . . . . . . . . . . . . . . . . . . Hacks Repelled . | . . . . . . . . . . . . . . . . . . . . . . . . Allies | -11 -10 -9 -9 -8 -7 -7 -7 -7 -6 -6 -6 -6 -6 -6 -5 -5 -4 -4 -4 -4 -3 -3 -2 -------- Run | Yrd Mat Mat Min Mat Fac Low Low Zio Pro Fac Ext Cet Arc Hub Fac DSF Fac Upp Upp War Pro Res Res Total Allies 28 | . . . . . . . . . . . 18 5 . . . . . . . 5 . . . Largest Group 15 | . . . . . . . . . . . 15 15 14 11 . . . . . 5 4 4 2 Highest-Rated Group 879 | . . . . . . . . . . . 556 879 879 667 . . . . . 295 227 227 121 Highest-Rated Ally 159 | . . . . . . . . . . . 159 159 159 96 . . . . . 68 64 64 64 Initial Warlord ECA Mod 9 | . . . . . . . . . . . . . . . . . 9 9 9 9 8 8 7 Total Orders 33 | . . . . . . . . . . . 4 4 . . . . 22 . . 3 . . . STAY 8 | . . . . . . . . . . . 3 3 . . . . . . . 2 . . . FOLLOW 4 | . . . . . . . . . . . 1 1 . . . . 1 . . 1 . . . EXPLORE 15 | . . . . . . . . . . . . . . . . . 15 . . . . . . RETURN 6 | . . . . . . . . . . . . . . . . . 6 . . . . . . Ally Attacks 269 | . . . . . . . . . . . 62 64 19 79 . . . . . 19 4 22 . Total Damage 7458 | . . . . . . . . . . . 1230 1521 472 2521 . . . . . 724 81 909 . Kills 46 | . . . . . . . . . . . 6 9 2 19 . . . . . 4 1 5 . Allies Corrupted 3 | . . . . . . . . . . . . . . 2 . . 1 . . . . . . Allies Melted 1 | . . . . . . . . . . . . . . . . . . . . . . . 1 Intel | -11 -10 -9 -9 -8 -7 -7 -7 -7 -6 -6 -6 -6 -6 -6 -5 -5 -4 -4 -4 -4 -3 -3 -2 ------- Run | Yrd Mat Mat Min Mat Fac Low Low Zio Pro Fac Ext Cet Arc Hub Fac DSF Fac Upp Upp War Pro Res Res Active Infowar (turns) 12134 | 6 493 14 . 585 987 48 989 1312 631 785 150 . 145 143 89 3 1226 542 610 984 450 859 1083 Optics 3149 | . . . . . . . . . . 1 . . . . . . . . . 756 450 859 1083 Sensors 8562 | . . . . . 675 . 946 1312 631 768 150 . 145 143 89 . 772 542 610 230 450 687 412 IFF 1 | . . . . . . . . . . . . . . . . . . . 1 . . . . Structural 860 | . . . . 2 151 48 342 . . 317 . . . . . . . . . . . . . Seismic 2536 | 6 493 14 . 583 972 . . . . 14 . . . . . . 454 . . . . . . Jamming 1369 | . . . . . . . . . . . . . . . . 3 257 . . . . 853 256 Robot Analysis Total 6 | . 2 2 . 1 1 . . . . . . . . . . . . . . . . . . Derelict Logs Recovered 10 | . . . 2 . . 2 . 1 2 . . . . . . . . 3 . . . . . Drone Launches 15 | . . . . . . . . . . . . . . . . . 15 . . . . . . Drone Recoveries 13 | . . . . . . . . . . . . . . . . . 13 . . . . . . Exploration | -11 -10 -9 -9 -8 -7 -7 -7 -7 -6 -6 -6 -6 -6 -6 -5 -5 -4 -4 -4 -4 -3 -3 -2 ------------- Run | Yrd Mat Mat Min Mat Fac Low Low Zio Pro Fac Ext Cet Arc Hub Fac DSF Fac Upp Upp War Pro Res Res Turns Passed 22107 | 96 1278 2507 538 1352 1801 395 1032 1312 734 1133 1625 888 408 347 92 331 1578 544 686 984 450 859 1137 Spaces Moved 10889 | 41 585 1003 266 630 884 202 620 824 407 557 723 463 69 140 54 131 754 334 407 489 249 438 619 Core 30 | 1 . . . . . . . . . . . . . . . . . . . . . . 29 Treads 9954 | 40 149 597 266 630 884 202 620 824 407 557 723 463 69 140 54 131 754 334 407 489 249 438 527 Legs . | . . . . . . . . . . . . . . . . . . . . . . . . Wheels 842 | . 436 406 . . . . . . . . . . . . . . . . . . . . . Hover . | . . . . . . . . . . . . . . . . . . . . . . . . Flight 63 | . . . . . . . . . . . . . . . . . . . . . . . 63 Fastest Speed 37 | 50 140 140 200 155 155 155 158 155 151 151 155 158 160 160 160 160 160 160 160 160 160 160 37 Average Speed 162 | 157 162 190 200 159 155 157 158 157 155 152 158 160 160 160 160 160 160 160 160 161 160 169 142 Slowest Speed 320 | 160 240 320 200 162 225 162 158 158 225 155 238 163 160 160 160 160 240 160 160 240 160 240 160 Overloaded Moves . | . . . . . . . . . . . . . . . . . . . . . . . . Propulsion Burnouts . | . . . . . . . . . . . . . . . . . . . . . . . . Robots Hopped . | . . . . . . . . . . . . . . . . . . . . . . . . Potential Cave-ins . | . . . . . . . . . . . . . . . . . . . . . . . . Cave-ins Triggered . | . . . . . . . . . . . . . . . . . . . . . . . . Exploration Rate (%) 52 | 3 91 83 70 69 30 26 54 78 68 18 89 68 67 25 3 83 27 68 63 73 54 18 28 Regions Visited 23 Branch Regions 13 Pre-discovered Areas 17 | . 3 3 . 5 2 . . 1 . . . . . . . . . 3 . . . . . Known Exits Taken 17 | . . . 1 1 1 1 . . 1 1 1 1 1 1 1 . 1 1 1 1 1 1 . Unknown Exits Taken 5 | 1 1 1 . . . . 1 1 . . . . . . . . . . . . . . . Scrap Searched 11 | . . . 1 . . 1 . 1 1 . . . . . . . . 3 3 . 1 . . Spaces Dug 61 | . . . . 6 4 1 1 . . 3 13 . . . . . 32 . . . . 1 . Terrain Destroyed 659 | . 5 25 . 6 29 1 1 . . 17 23 15 . 7 . 19 123 . 6 114 212 13 43 Melee 12 | . . . . 3 4 1 1 . . 3 . . . . . . . . . . . . . Projectile 124 | . . . . 3 . . . . . . . 1 . 7 . . 77 . 6 1 3 13 13 AOE 522 | . 5 25 . . 25 . . . . 14 23 14 . . . 18 46 . . 113 209 . 30 Terrain Rammed . | . . . . . . . . . . . . . . . . . . . . . . . . Walls Destroyed . | . . . . . . . . . . . . . . . . . . . . . . . . Machines Disabled . | . . . . . . . . . . . . . . . . . . . . . . . . Actions | -11 -10 -9 -9 -8 -7 -7 -7 -7 -6 -6 -6 -6 -6 -6 -5 -5 -4 -4 -4 -4 -3 -3 -2 --------- Run | Yrd Mat Mat Min Mat Fac Low Low Zio Pro Fac Ext Cet Arc Hub Fac DSF Fac Upp Upp War Pro Res Res Total 13871 | 61 827 1372 275 861 1138 251 658 840 467 741 1024 570 346 204 59 215 971 343 431 653 278 501 785 Wait 1138 | 1 154 128 8 86 83 25 15 1 15 77 83 42 264 17 . 17 73 1 11 6 2 5 24 Move 10866 | 40 584 1002 265 629 883 201 619 823 406 556 722 462 68 139 53 130 753 333 406 488 248 437 619 Hop . | . . . . . . . . . . . . . . . . . . . . . . . . Pick Up 186 | 5 21 32 1 23 12 . 3 3 3 16 3 10 . 4 2 13 9 . . 9 2 1 14 Fast Attach 91 | 5 1 5 . 2 9 4 2 3 4 2 5 6 3 3 . 5 5 3 2 8 1 3 10 Attach 72 | 1 3 15 . 5 3 . 1 . . 5 . 2 . 3 2 2 4 . . 3 2 7 14 Detach 24 | . 1 . . . 1 . . . . 1 . . . . . 2 1 1 . 5 . 6 6 Swap 261 | . 6 22 . 18 32 4 8 3 12 26 28 9 1 8 2 9 36 2 5 7 1 6 16 Drop 238 | . 9 35 1 23 19 4 4 6 6 14 7 20 2 6 . 19 12 3 2 19 3 5 19 Fire 710 | 9 48 127 . 70 77 11 5 . 21 40 50 11 8 24 . 18 73 . 3 13 18 28 56 Melee 22 | . . . . 3 9 2 1 1 . 3 . . . . . . 1 . . . . . 2 Ram 2 | . . 2 . . . . . . . . . . . . . . . . . . . . . Kick . | . . . . . . . . . . . . . . . . . . . . . . . . Crush 32 | . . 4 . 2 9 . . . . 1 2 . . . . . 4 . 2 . 1 3 4 Escape Stasis . | . . . . . . . . . . . . . . . . . . . . . . . . Rewire 187 | . . . . . 1 . . . . . 98 . . . . . . . . 87 . . 1 Trap . | . . . . . . . . . . . . . . . . . . . . . . . . Miscellaneous 42 | . . . . . . . . . . . 26 8 . . . . . . . 8 . . . Route ------- -11/Scrapyard -10/Materials (discovered 5 exits: *Mat x3 / [*Min] / [*Sub]) -9/Materials (discovered 4 exits: *Mat x3 / [*Min]) -9/Mines (discovered 2 exits: *Mat x2) -8/Materials (discovered 3 exits: *Fac x3) -7/Factory (discovered 4 exits: *Fac x2 / Sto / *Low) -7/Lower Caves -7/Lower Caves -7/Zion -6/Proximity Caves -6/Factory (discovered 4 exits: Fac x2 / *Ext x2) -6/Extension (discovered 2 exits: *Fac / *Cet) -6/Cetus (discovered 2 exits: *Fac / *Arc) -6/Archives (discovered 2 exits: *Hub x2) -6/Hub_04(d) -5/Factory -5/DSF -4/Factory (discovered 3 exits: *Res / *Upp x2) -4/Upper Caves -4/Upper Caves -4/Warlord -3/Proximity Caves -3/Research -2/Research (discovered 3 exits: [*Acc] / Qua x2) History --------- Turn | Location | Event 19 | -11/Scrapyard | Discovered new exit (range 15) 97 | -11/Scrapyard | Entered Materials 98 | -10/Materials | Met a group of wandering Federalists 151 | -10/Materials | Discovered new exit (range 8) 311 | -10/Materials | Build established: Mutant 391 | -10/Materials | Discovered new exit (range 15) 740 | -10/Materials | Discovered new exit (range 8) 912 | -10/Materials | Discovered new exit (range 15) 1025 | -10/Materials | Discovered new exit (range 9) 1187 | -10/Materials | Build established: Scavenger-Mutant 1256 | -10/Materials | Loaded intel: 4 trap records 1286 | -10/Materials | Learned Storage security intel 1306 | -10/Materials | Loaded intel: 1 recycling unit location 1318 | -10/Materials | Learned 2 Mines zone layouts 1375 | -10/Materials | Entered another Materials area 1375 | -9/Materials | Evolved 2 slots: Utility x1, Weapon x1 1696 | -9/Materials | Lost 3 parts (1n1u1w) 1744 | -9/Materials | Discovered new exit (range 16) 1811 | -9/Materials | Repaired Lgt. Treads 1844 | -9/Materials | Build established: Scavenger-Tank 2466 | -9/Materials | Build established: Scavenger-Gunner 2544 | -9/Materials | Discovered new exit (range 16) 2663 | -9/Materials | Discovered new exit (range 9) 2987 | -9/Materials | Repaired Lgt. Treads+ 3242 | -9/Materials | Identified exit to Materials 3247 | -9/Materials | Learned Recycling recycling unit intel 3248 | -9/Materials | Learned Storage security intel 3256 | -9/Materials | Learned location of Zion (-7) 3350 | -9/Materials | Build established: Gunner 3775 | -9/Materials | First assault squad dispatched 3882 | -9/Materials | Entered Mines 3884 | -9/Mines | Met a Derelict bent on vengeance 4099 | -9/Mines | Learned Materials terminal intel 4132 | -9/Mines | Received a Rocket Launcher from a helpful Derelict 4149 | -9/Mines | Discovered exit to Materials (range 8) 4420 | -9/Mines | Entered Materials 4420 | -8/Materials | Evolved 2 slots: Propulsion x2 4421 | -8/Materials | Loaded intel: 12 terminal locations 4853 | -8/Materials | Discovered new exit (range 11) 5378 | -8/Materials | Learned Factory stockpile data 5453 | -8/Materials | Build established: Scavenger-Gunner 5504 | -8/Materials | Learned location of Extension (-6) 5553 | -8/Materials | Identified exit to Factory 5622 | -8/Materials | Learned Factory terminal intel 5772 | -8/Materials | Entered Factory 5772 | -7/Factory | Evolved 2 slots: Utility x2 5773 | -7/Factory | Identified exit to Storage 5773 | -7/Factory | Identified exit to Lower Caves 5775 | -7/Factory | Loaded intel: 26 terminal locations 6248 | -7/Factory | Build established: Mutant 6793 | -7/Factory | Discovered new exit (range 17) 6958 | -7/Factory | Build established: Tank 7152 | -7/Factory | Learned Extension trap positions 7194 | -7/Factory | Learned location of Upper Caves (-4) 7252 | -7/Factory | Learned Extension security intel 7265 | -7/Factory | Identified exit to Factory 7573 | -7/Factory | Entered Lower Caves 7574 | -7/Lower Caves | Identified exit to Lower Caves 7725 | -7/Lower Caves | Attracted the attention of an 0b10 checkpoint 7932 | -7/Lower Caves | Learned location of 1 exit from Factory 7968 | -7/Lower Caves | Entered another Lower Caves area 8528 | -7/Lower Caves | Attracted the attention of an 0b10 checkpoint 8642 | -7/Lower Caves | Entered an active Warlord outpost 8652 | -7/Lower Caves | Learned Research trap positions 8652 | -7/Lower Caves | Learned Factory security intel 8652 | -7/Lower Caves | Learned Research terminal intel 8834 | -7/Lower Caves | Discovered new exit (range 7) 9000 | -7/Lower Caves | Entered Zion 9053 | -7/Zion | System corruption cleaned by Quarantine Array 9292 | -7/Zion | Learned location of 1 exit from Factory 9652 | -7/Zion | Build established: Mutant 9676 | -7/Zion | Learned location of Warlord (-4) 10056 | -7/Zion | Found CR-A16's Pointy Stick 10287 | -7/Zion | Discovered new exit (range 16) 10312 | -7/Zion | Entered Proximity Caves 10361 | -6/Proximity Caves | Build established: Tank 10514 | -6/Proximity Caves | Attracted the attention of an 0b10 checkpoint 10666 | -6/Proximity Caves | Learned Factory trap positions 11046 | -6/Proximity Caves | Entered Factory 11046 | -6/Factory | Evolved 2 slots: Utility x1, Weapon x1 11047 | -6/Factory | Identified exit to Extension 11048 | -6/Factory | Identified exit to Factory 11049 | -6/Factory | Loaded intel: 113 trap records 11100 | -6/Factory | Garrison activated, responded to threat 11714 | -6/Factory | Garrison activated, responded to threat 11873 | -6/Factory | Fabricated Arm. Medium Treads? 12179 | -6/Factory | Entered Extension 12180 | -6/Extension | Loaded intel: 26 trap records 12656 | -6/Extension | Rescued A7 12711 | -6/Extension | Rescued a captive Derelict 12712 | -6/Extension | Rescued a captive Derelict 12812 | -6/Extension | Rescued a captive Derelict 12827 | -6/Extension | Rescued a captive Derelict 12919 | -6/Extension | Build established: Commander-Gunner 13075 | -6/Extension | Spotted B-75 Beast 13084 | -6/Extension | Destroyed B-75 Beast 13110 | -6/Extension | Spotted B-75 Beast 13128 | -6/Extension | Destroyed B-75 Beast 13153 | -6/Extension | Lost 3 allies 13228 | -6/Extension | Rescued a captive Derelict 13298 | -6/Extension | Found Powered Armor 13301 | -6/Extension | Found Powered Armor 13396 | -6/Extension | Rescued a captive Derelict 13396 | -6/Extension | Rescued a captive Derelict 13533 | -6/Extension | Rescued a captive Derelict 13686 | -6/Extension | Discovered exit to Factory (range 10) 13687 | -6/Extension | Discovered new exit (range 6) 13787 | -6/Extension | Identified exit to Cetus 13804 | -6/Extension | Entered Cetus 13804 | -6/Cetus | Accompanied by 15 allies (A7) 13809 | -6/Cetus | Acquired a Cetus Manufacturing Module code from A7 13820 | -6/Cetus | Spotted Cetus Guard 13820 | -6/Cetus | Spotted Cetus Guard 13822 | -6/Cetus | Spotted Cetus Guard 13828 | -6/Cetus | Allies destroyed Cetus Guard 13830 | -6/Cetus | Destroyed Cetus Guard 13839 | -6/Cetus | Allies destroyed Cetus Guard 13855 | -6/Cetus | Lost 3 allies 13911 | -6/Cetus | Started Cetus Manufacturing Module 13936 | -6/Cetus | Manufactured an Enhanced Grunt 13949 | -6/Cetus | Escorted A7 to Cetus Mainframe 13961 | -6/Cetus | Manufactured an Enhanced Grunt 13976 | -6/Cetus | Discovered new exit (range 16) 13986 | -6/Cetus | Manufactured an Enhanced Grunt 14003 | -6/Cetus | Spotted Cetus Guard 14003 | -6/Cetus | Spotted Cetus Guard 14004 | -6/Cetus | Destroyed Cetus Guard 14005 | -6/Cetus | Spotted Cetus Guard 14011 | -6/Cetus | Manufactured an Enhanced Grunt 14011 | -6/Cetus | Destroyed Cetus Guard 14013 | -6/Cetus | Spotted Cetus Guard 14018 | -6/Cetus | Allies destroyed Cetus Guard 14027 | -6/Cetus | Allies destroyed Cetus Guard 14036 | -6/Cetus | Manufactured an Enhanced Grunt 14038 | -6/Cetus | Discovered exit to Factory (range 15) 14048 | -6/Cetus | Met Revision 17 14051 | -6/Cetus | Lost 3 allies 14154 | -6/Cetus | Build established: Commander-Tank 14415 | -6/Cetus | Identified exit to Archives 14554 | -6/Cetus | Security sweep announced 14692 | -6/Cetus | Entered Archives 14692 | -6/Archives | Accompanied by 14 allies (A7) 14697 | -6/Archives | Received a hacking code to weaken MAIN.C 14757 | -6/Archives | Discovered new exit (range 15) 14918 | -6/Archives | Discovered new exit (range 15) 14950 | -6/Archives | Identified exit to Hub_04(d) 15100 | -6/Archives | Entered Hub_04(d) 15100 | -6/Hub_04(d) | Accompanied by 11 allies 15272 | -6/Hub_04(d) | Network Hub disabled 15272 | -6/Hub_04(d) | Network Hub disabled 15282 | -6/Hub_04(d) | Spotted Lightning 15284 | -6/Hub_04(d) | Spotted Lightning 15297 | -6/Hub_04(d) | Discovered exit to Factory (range 16) 15301 | -6/Hub_04(d) | Destroyed Lightning 15316 | -6/Hub_04(d) | Allies destroyed Lightning 15320 | -6/Hub_04(d) | Found Prototype Device 15321 | -6/Hub_04(d) | Identified Exp. Thermal Shield 15344 | -6/Hub_04(d) | Found Prototype Processor 15344 | -6/Hub_04(d) | Identified Exp. Targeting Computer 15350 | -6/Hub_04(d) | Found Prototype Device 15350 | -6/Hub_04(d) | Identified Exp. EM Shield 15365 | -6/Hub_04(d) | Lost 7 allies 15379 | -6/Hub_04(d) | Network Hub disabled 15444 | -6/Hub_04(d) | Lost 4 allies 15447 | -6/Hub_04(d) | Entered Factory 15447 | -5/Factory | Evolved 2 slots: Power x2 15538 | -5/Factory | Identified exit to DSF 15539 | -5/Factory | Entered DSF 15577 | -5/DSF | Additional patrols routed to DSF 15592 | -5/DSF | Build established: Scavenger-Tank 15745 | -5/DSF | Sterilization system engaged 15765 | -5/DSF | Ambient heat levels rising (+10) 15780 | -5/DSF | Ambient heat levels rising (+10) 15795 | -5/DSF | Ambient heat levels rising (+10) 15810 | -5/DSF | Ambient heat levels rising (+10) 15825 | -5/DSF | Ambient heat levels rising (+10) 15840 | -5/DSF | Ambient heat levels rising (+10) 15849 | -5/DSF | Discovered new exit (range 14) 15855 | -5/DSF | Ambient heat levels rising (+10) 15870 | -5/DSF | Ambient heat levels rising (+10) 15870 | -5/DSF | Entered Factory 15870 | -4/Factory | Evolved 2 slots: Utility x2 15922 | -4/Factory | Discovered new exit (range 45) 16324 | -4/Factory | Identified exit to Research 17184 | -4/Factory | Discovered new exit (range 30) 17187 | -4/Factory | Discovered new exit (range 41) 17233 | -4/Factory | Identified exit to Upper Caves 17448 | -4/Factory | Entered Upper Caves 17454 | -4/Upper Caves | Met a Warlord Commander 17456 | -4/Upper Caves | Warlord Commander delivered Encrypted Comm Array 17757 | -4/Upper Caves | Learned Research stockpile data 17766 | -4/Upper Caves | Learned location of Testing (-3) 17873 | -4/Upper Caves | Discovered new exit (range 14) 17989 | -4/Upper Caves | Identified exit to Upper Caves 17992 | -4/Upper Caves | Entered another Upper Caves area 18563 | -4/Upper Caves | Discovered new exit (range 4) 18566 | -4/Upper Caves | Identified exit to Warlord 18678 | -4/Upper Caves | Entered Warlord 18731 | -4/Warlord | System corruption cleaned by Quarantine Array 18906 | -4/Warlord | Found Prototype Processor 18906 | -4/Warlord | Identified Spectral Analyzer 18910 | -4/Warlord | Found Prototype Device 18910 | -4/Warlord | Identified Exp. Focal Shield 18920 | -4/Warlord | Found Prototype Reactor 18920 | -4/Warlord | Identified Vortex Chain Reactor 18930 | -4/Warlord | Found Prototype Device 18930 | -4/Warlord | Identified Exp. Phase Shifter 18945 | -4/Warlord | Found Prototype Hackware 19177 | -4/Warlord | Met Warlord 19202 | -4/Warlord | Warlord's base attacked by MAIN.C 19301 | -4/Warlord | Found Prototype Energy Gun 19301 | -4/Warlord | Identified Vortex Shotgun 19307 | -4/Warlord | Found Vortex Shotgun 19435 | -4/Warlord | Warlord forces counterattacked 19445 | -4/Warlord | Lost 5 allies 19471 | -4/Warlord | Destroyed 8 combat bots 19530 | -4/Warlord | Spotted Executioner 19534 | -4/Warlord | Allies destroyed Executioner 19562 | -4/Warlord | Found Prototype Ballistic Cannon 19562 | -4/Warlord | Identified Hvy. Autocannon 19607 | -4/Warlord | Spotted Striker 19636 | -4/Warlord | Discovered new exit (range 9) 19648 | -4/Warlord | Identified exit to Proximity Caves 19662 | -4/Warlord | Entered Proximity Caves 19662 | -3/Proximity Caves | Accompanied by 4 allies 19809 | -3/Proximity Caves | Destroyed 7 combat bots 20059 | -3/Proximity Caves | Discovered exit to Research (range 9) 20112 | -3/Proximity Caves | Entered Research 20112 | -3/Research | Accompanied by 4 allies 20112 | -3/Research | Evolved 2 slots: Power x1, Utility x1 20113 | -3/Research | Loaded intel: 80 trap records 20115 | -3/Research | Loaded intel: 23 terminal locations 20286 | -3/Research | Identified Ghost Barrier 20312 | -3/Research | Revision forces began assault on 0b10 20323 | -3/Research | Discovered new exit (range 15) 20347 | -3/Research | Identified exit to Research 20362 | -3/Research | P-80 Master assimilated allied Revision 20380 | -3/Research | Met up with Revision 17++ 20401 | -3/Research | Lost 5 allies 20408 | -3/Research | Build established: Generator-Skirmisher 20812 | -3/Research | Research terminal network offline 20971 | -3/Research | Entered another Research area 20971 | -2/Research | Accompanied by 2 allies 20971 | -2/Research | Warlord forces began assault on 0b10 20971 | -2/Research | Evolved 2 slots: Propulsion x2 20996 | -2/Research | Distinguished unit "Shockpunchers" dispatched to help 21010 | -2/Research | Identified exit to Quarantine 21081 | -2/Research | Research machine network offline 21249 | -2/Research | Spotted Striker 21269 | -2/Research | Build established: Generator-Tank 21272 | -2/Research | Destroyed Striker 21312 | -2/Research | Lost 4 allies 21430 | -2/Research | Borebot progress halted 21433 | -2/Research | Borebot progress halted 21561 | -2/Research | Lost 3 allies 21712 | -2/Research | Spotted Striker 21751 | -2/Research | Lost 5 allies 21883 | -2/Research | Found Prototype Device 21883 | -2/Research | Identified Thermal Barrier 21986 | -2/Research | Spotted Striker 21989 | -2/Research | Spotted Executioner 21992 | -2/Research | Spotted Executioner 21993 | -2/Research | Spotted Striker 21994 | -2/Research | Spotted Executioner 22028 | -2/Research | Destroyed Striker 22037 | -2/Research | Discovered new exit (range 20) 22054 | -2/Research | Released all parts (14) 22060 | -2/Research | Core integrity fell below 50% 22075 | -2/Research | Spotted B-90 Cyclops 22089 | -2/Research | Core integrity fell below 20% 22091 | -2/Research | Borebot progress halted 22108 | -2/Research | Destroyed by B-90 Cyclops with Nova Cannon Last Messages --------------- 22066_ System corrupted: Substantial component data lost. 22067_ Acquired Q-thruster. 22073_ Slug penetrates Wall. 22075_ Potential Refractor disabled. 22079_ Xenon Bombardment Thruster destroyed. 22079_ Penetrated by Slug. 22082_ ILWBZ5RZKFWD:DGGHY7CTRD7XT9UQ7QZFO#25M7 22082_ Penetrated by Slug. 22085_ Acquired Spear. 22089_ Penetrated by Slug. 22091_ Q-thruster destroyed. 22091_ ANNOUNCEMENT: Tunneling progress halted along southeastern route. 1E-SMM(T) no longer operational. 22100_ Dropped Spear. 22104_ Slug penetrates Wall. 22104_ S-43 Plague destroyed. 22104_ Slug penetrates H-88 Terminator. 22106_ Penetrated by Slug. Map ----- +----------------------------------------------------+ | ??????????????????????????????????????????????? | | ??????????????????????????????????????????????? | | ??????????????????????????????????????????????? | | ??????????????????????????????????????????????? | | ??????????????????????????????????????????????? | | ??????????????????????????????????????????????? | | ??????????????????????????????????????????????? | | ??????????????????????????????????????????????? | | ??????????????????????????????????????????????? | | ????????????????????????##????????????????????? | | ########????????????#####;########????????????? | | """T ""#????????????# # ! #????????????? | | """ ""########+##### ; = #????????????? | | BB;= #????????????? | | BB; ! #????????????? | | ; ]##???????????? | | """"" ; ;#???????????? | | """""" ; ##???????????? | | !!! """""" ; #????????????? | | !! ;;;##;+#;##????????????? | | !! #????????????? | | h #????????????? | | #????????????? | | h #????????????? | | ########"##########"##+#;;;;#+#####???????????? | | ## #??? #@ =% #???????????? | | #### #?? # #???????????? | | ##??# """ #?# # """ #???????????? | | #???# """ #?# !# """"#???????????? | | ????# """ ]#?# # """"#???????????? | | ????# """ #?# # ! """#???????????? | | #???# """ #?# # #???????????? | | #???# #?# #/ = =#???????????? | | ????# !#?# ###########???????????? | | ????##########?##########?????????????????????? | | ??????????????????????????????????????????????? | | ??????????????????????????????????????????????? | | ??????????????????????????????????????????????? | | ??????????????????????????????????????????????? | | ??????????????????????????????????????????????? | | ??????????????????????????????????????????????? | | ??????????????????????????????????????????????? | | ??????????????????????????????????????????????? | | ??????????????????????????????????????????????? | | ????????????????????????>?????????????????????? | | ??????????????????????????????????????????????? | | ??????????????????????????????????????????????? | | ??????????????????????????????????????????????? | | ??????????????????????????????????????????????? | | ??????????????????????????????????????????????? | +----------------------------------------------------+ Best States ------------- Heat Dissipation 80 Coolant Potential 100 Energy Generation 95 Energy Capacity 1200 Matter Stores 300 Matter Capacity 800 Sight Range 24 Robot Scan Range 16 Terrain Scan Density 10 Jamming Range 14 Armor Coverage 1200 Resistance: KI 30 Resistance: TH 50 Resistance: EM 75 Point Defense Rating 240 Phase Shifting 20 Evasion (%) 62 Targeting Accuracy 13 Target Analysis 6 Recoil Reduction 6 Salvage Targeting 3 Authchip Count 1 Item Schematics ----------------- Flak Gun | -7/Zion | Archive Matter Compressor | -7/Zion | Archive Imp. Melee Analysis Suite | -7/Zion | Archive EM Disruption Field | -7/Zion | Archive Microactuators | -7/Zion | Archive Arm. Medium Treads | -7/Zion | Archive Adv. Cooling System | -7/Zion | Archive Imp. EM Pulse Cannon | -7/Zion | Archive Fusion Compressor | -7/Zion | Archive Med. Treads | -7/Zion | Archive Imp. Thermal Generator | -7/Zion | Archive Adv. Signal Interpreter | -7/Zion | Archive Arc Projector | -7/Zion | Archive Riot Gun | -7/Zion | Free Hvy. Riot Gun | -7/Zion | Free Enh. Flamer | -7/Zion | Free Arc Thrower | -7/Zion | Free Tactical Coordination Suite | -7/Zion | Free Adv. System Shield | -6/Factory | Hacked Centrium Medium Armor Plating | -3/Research | Scanalyzed Robot Schematics ------------------ R-06 Scavenger | -7/Zion | Archive B-48 Gladiator | -7/Zion | Archive G-73 Enforcer | -7/Zion | Archive Fabricated ------------ Arm. Medium Treads | x2 | -6/Factory | Authchip Repaired ---------- Lgt. Treads | 5% | -9/Materials Lgt. Treads | 3% | -9/Materials Studied --------- Lgt. Treads | -9/Materials | Hacked Autogun | -9/Materials | Hacked Hvy. Assault Rifle | -9/Materials | Hacked Lgt. Assault Rifle | -9/Materials | Hacked Rocket Launcher | -9/Materials | Hacked Grenade Launcher | -9/Materials | Hacked Hyp. Gauss Cannon | -4/Factory | Hacked HERF Cannon | -3/Research | Hacked Alien Tech Used ----------------- None Achievements -------------- Betrayal Most Foul Ew, Corruption Hot Goods I Like You, Cogmind Immobile And Lovin' It My Bad No Explosion For You Tank Life Thread The Needle Around The Corner Window Shopping Challenges ------------ None Game ------ Seed TiamatDeuteriumGreatsword Manual? 0 Play Time 05:54:13 Cumulative 180.3 hours Start 2025.11.01 @ 00:19:24 End 2025.11.07 @ 18:33:44 Sessions 21 Manual Loads 0 Difficulty Rogue Special Mode None Game No. 84 Rogue 79 Adventurer 5 Explorer 0 Win Type - Total 4 Types 3/0/0/1/0/0/0/0/0/0 Lore% 61 Gallery% 64 Achievement% 44 Wizard Run 0 Options --------- Layout 1 ASCII 0 Keyboard 0 Movement Numpad Keybinds 0 Fullscreen 1 Font 24/Smallcaps Map View 50x35 Zoom Use 0% Tactical HUD 1 Map Filters NONE Filters NONE Steam 1 RUN: aff97904-bf57-41e9-a787-320883e25c44